bitfinex/quotes_SOLUSD_20251127
["timestamp","ask_amount","ask_price","bid_price","bid_amount"]
[1764267278142,1.32480783,141.99,141.97,0.62002875]
[1764267278337,894.24177933,142.0,141.99,7.04274948]
[1764267278643,897.34177933,142.0,141.99,10.14289323]
[1764267279356,898.00177933,142.0,141.96,2.480115]
[1764267279559,1.32480783,141.99,141.98,0.62002875]
[1764267281358,0.66480783,141.99,141.98,0.62002875]
[1764267281671,1.36480783,141.99,141.98,0.62002875]
[1764267282149,0.66480783,141.99,141.98,7.66327427]
[1764267282354,3.1,141.99,141.98,7.66327427]
[1764267284459,894.24177933,142.0,141.98,10.86338927]
[1764267284651,894.24177933,142.0,141.99,3.10014375]
[1764267284852,894.24177933,142.0,141.99,3.82014375]
[1764267284853,897.34177933,142.0,141.99,3.82014375]
[1764267285062,897.34177933,142.0,141.99,3.10014375]
[1764267285465,894.24177933,142.0,141.99,3.82014375]
[1764267286769,894.24177933,142.0,141.99,10.86289323]
[1764267288012,860.90040116,142.0,141.99,10.86289323]
[1764267288871,860.90040116,142.0,141.99,78.4715846]
[1764267289079,827.55902299,142.0,141.99,78.4715846]
[1764267289781,827.55902299,142.0,141.99,28.4715846]
[1764267290085,794.21764482,142.0,141.99,53.59039352]
[1764267290988,760.87626665,142.0,141.99,53.59039352]
[1764267292677,760.87626665,142.0,141.99,20.70883512]
[1764267292878,760.87626665,142.0,141.99,3.10014375]
[1764267292879,761.57626665,142.0,141.99,3.10014375]
[1764267297816,761.57626665,142.0,141.99,10.14289323]
[1764267298307,761.57626665,142.0,141.98,7.04324552]
[1764267298613,761.57626665,142.0,141.99,3.10014375]
[1764267300120,763.97626665,142.0,141.99,3.10014375]
[1764267300996,764.67626665,142.0,141.99,0.62002875]
[1764267301197,764.67626665,142.0,141.97,0.62002875]
[1764267301398,0.7,141.99,141.97,0.62002875]
[1764267301600,0.7,141.99,141.98,0.62002875]
[1764267301921,3.1,141.99,141.98,0.62002875]
[1764267302318,761.57626665,142.0,141.98,3.82014375]
[1764267302319,760.87626665,142.0,141.98,3.82014375]
[1764267302497,3.1,141.99,141.98,0.72]
[1764267302892,3.1,141.99,141.98,17.028864]
[1764267303115,3.8,141.99,141.98,16.308864]
[1764267303419,3.8,141.99,141.95,16.308864]
[1764267303615,0.7,141.98,141.97,0.62002875]
[1764267304602,0.7,141.98,141.97,7.66377038]
[1764267304803,3.1,141.99,141.97,7.66377038]
[1764267305002,3.8,141.99,141.98,0.62002875]
[1764267305725,760.87626665,142.0,141.98,0.62002875]
[1764267305935,760.87626665,142.0,141.97,7.04374163]
[1764267305936,3.8,141.99,141.97,7.04374163]
[1764267307128,3.8,141.99,141.98,0.96773577]
[1764267307825,0.7,141.99,141.98,0.96773577]
[1764267308025,3.8,141.99,141.98,0.96773577]
[1764267308709,3.8,141.99,141.96,16.308864]
[1764267308914,0.7,141.98,141.96,0.96773577]
[1764267309217,3.1,141.97,141.96,0.96773577]
[1764267309711,3.8,141.97,141.96,0.96773577]
[1764267311807,3.1,141.97,141.96,0.96773577]
[1764267312925,10.1438095,141.97,141.96,0.96773577]
[1764267313234,10.1438095,141.97,141.94,0.96773577]
[1764267313605,10.1438095,141.97,141.93,0.96773577]
[1764267314119,19.508864,141.97,141.93,1.61773577]
[1764267314318,19.508864,141.97,141.94,0.96773577]
[1764267315239,7.04428409,141.96,141.94,0.96773577]
[1764267315534,3.1,141.95,141.94,0.96773577]
[1764267320411,3.1,141.95,141.93,0.65]
[1764267320610,10.14474165,141.95,141.93,1.61773577]
[1764267320826,3.1,141.94,141.93,1.61773577]
[1764267322749,3.1,141.94,141.93,2.58547154]
[1764267323240,5.82705899,141.96,141.93,2.58547154]
[1764267323432,3.1,141.95,141.94,1.61773577]
[1764267325726,3.1,141.95,141.93,0.65]
[1764267326029,3.1,141.95,141.94,1.61773577]
[1764267328248,3.1,141.95,141.94,0.65]
[1764267332274,3.1,141.96,141.94,0.65]
[1764267332849,3.1,141.96,141.95,0.96773577]
[1764267333857,3.1,141.96,141.94,0.65]
[1764267334056,10.14429591,141.96,141.94,0.65]
[1764267334268,3.1,141.96,141.95,0.96773577]
[1764267338056,8.50936775,141.97,141.95,0.96773577]
[1764267342569,3.1,141.97,141.95,0.96773577]
[1764267343579,10.14405969,141.97,141.95,0.96773577]
[1764267344752,760.87626665,142.0,141.95,0.96773577]
[1764267344986,760.87626665,142.0,141.99,1.93547154]
[1764267345282,760.87626665,142.0,141.99,18.24433554]
[1764267345483,760.87626665,142.0,141.99,25.95708502]
[1764267345976,756.03118047,142.0,141.99,25.95708502]
[1764267348983,698.87453219,142.0,141.99,37.86702994]
[1764267349969,641.71788391,142.0,141.99,37.86702994]
[1764267350775,525.21191567,142.0,141.99,113.15135308]
[1764267350978,200.85942803,142.0,141.99,119.81564246]
[1764267351185,1e-08,142.0,141.99,117.81564247]
[1764267351481,1e-08,142.0,141.99,140.95803648]
[1764267351679,0.72,142.1,142.0,9.09426806]
[1764267351980,0.2,142.11,142.09,0.96773577]
[1764267352281,0.2,142.11,142.1,0.96773577]
[1764267352483,0.72,142.1,142.09,0.96773577]
[1764267355178,0.72,142.1,142.08,0.96773577]
[1764267355870,0.72,142.1,142.09,0.96773577]
[1764267359367,0.72,142.1,142.08,0.96773577]
[1764267359888,7.75730164,142.1,142.07,0.96773577]
[1764267360271,0.72,142.09,142.07,0.96773577]
[1764267360988,0.72,142.09,142.01,17.60354283]
[1764267361288,7.03828828,142.08,142.05,0.96773577]
[1764267361670,0.72,142.07,142.04,17.27659977]
[1764267361886,0.72,142.07,142.04,17.94659977]
[1764267362070,0.72,142.07,142.05,0.96773577]
[1764267362992,7.75885816,142.07,142.05,0.96773577]
[1764267363795,0.72,142.06,142.04,0.96773577]
[1764267364179,0.72,142.06,142.03,0.96773577]
[1764267364484,0.72,142.06,142.03,1.63773577]
[1764267364993,17.898864,142.11,142.06,16.308864]
[1764267365176,17.898864,142.11,142.1,0.96773577]
[1764267365177,0.2,142.11,142.1,0.96773577]
[1764267367991,0.2,142.11,142.09,0.96773577]
[1764267368298,0.92,142.11,142.09,0.96773577]
[1764267368692,0.92,142.11,142.09,0.61842355]
[1764267370101,0.66,142.1,142.08,23.96535759]
[1764267370470,0.2,142.11,142.08,23.96535759]
[1764267370676,0.86,142.11,142.08,24.65535759]
[1764267371494,8.51527276,142.11,142.08,16.308864]
[1764267371695,0.71,142.1,142.08,16.308864]
[1764267373803,0.61842355,142.09,142.04,0.61842355]
[1764267374284,0.71,142.08,142.05,16.308864]
[1764267374488,0.71,142.08,142.05,16.92728755]
[1764267374883,0.71,142.08,142.05,23.96684847]
[1764267375497,0.71,142.08,142.06,0.61842355]
[1764267376695,0.91,142.11,142.07,1.28842355]
[1764267376902,0.91,142.11,142.08,7.65671183]
[1764267376903,4.01,142.11,142.08,7.65671183]
[1764267377109,4.01,142.11,142.08,8.32671183]
[1764267377597,4.01,142.11,142.1,0.61842355]
[1764267377598,0.2,142.11,142.1,0.61842355]
[1764267377989,0.2,142.11,142.1,1.28842355]
[1764267378901,0.2,142.11,142.1,27.10827942]
[1764267380592,0.2,142.11,142.1,24.63458522]
[1764267381308,0.1,142.13,142.11,0.67]
[1764267381501,0.1,142.13,142.12,0.61842355]
[1764267383097,0.1,142.13,142.12,1.28842355]
[1764267383491,0.1,142.13,142.12,0.61842355]
[1764267385406,0.1,142.13,142.12,1.28842355]
[1764267386213,0.1,142.13,142.11,7.03677567]
[1764267386405,0.1,142.13,142.12,0.61842355]
[1764267387102,0.81,142.13,142.1,23.34604797]
[1764267387285,0.81,142.13,142.11,0.61842355]
[1764267387689,0.1,142.13,142.11,0.61842355]
[1764267387990,0.1,142.13,142.11,1.28842355]
[1764267388191,0.1,142.13,142.11,8.32521321]
[1764267388605,0.1,142.13,142.11,7.65521321]
[1764267389006,0.1,142.13,142.11,8.32521321]
[1764267390196,0.1,142.13,142.12,0.61842355]
[1764267391104,0.1,142.13,142.12,1.28842355]
[1764267391614,0.1,142.13,142.12,3.76211775]
[1764267391996,0.1,142.13,142.12,1.28842355]
[1764267392196,0.1,142.13,142.12,7.70630734]
[1764267392402,0.1,142.13,142.12,8.32473089]
[1764267393221,0.1,142.13,142.12,7.70630734]
[1764267393512,0.1,142.13,142.12,8.32473089]
[1764267395616,0.1,142.13,142.11,10.13663403]
[1764267395821,0.1,142.13,142.12,0.61842355]
[1764267396020,0.1,142.13,142.12,1.28842355]
[1764267397416,0.1,142.13,142.12,0.67]
[1764267397622,7.03432751,142.16,142.12,1.28842355]
[1764267398520,7.03432751,142.16,142.12,8.32472652]
[1764267399426,0.61842355,142.17,142.13,1.28842355]
[1764267399619,0.57,142.16,142.13,1.28842355]
[1764267400701,7.60461798,142.16,142.12,7.65472652]
[1764267400923,7.60461798,142.16,142.12,8.33472652]
[1764267401827,8.22304153,142.16,142.12,0.68]
[1764267402008,0.57,142.15,142.11,10.75500363]
[1764267402213,0.57,142.15,142.11,8.33500363]
[1764267403127,0.57,142.15,142.12,0.68]
[1764267403626,7.6049838,142.15,142.12,0.68]
[1764267405341,7.6049838,142.15,142.11,0.61842355]
[1764267405342,7.0349838,142.15,142.11,0.61842355]
[1764267405532,7.03581228,142.13,142.1,0.61842355]
[1764267405735,7.03581228,142.13,142.11,1.29842355]
[1764267406129,7.0350594,142.15,142.12,1.29842355]
[1764267407449,19.408864,142.24,142.13,16.988864]
[1764267407753,11.67993385,142.38,142.13,16.988864]
[1764267407754,0.69,142.33,142.31,8.80994492]
[1764267407928,0.69,142.33,142.32,16.92728755]
[1764267408144,0.69,142.36,142.32,24.59299683]
[1764267408331,0.69,142.36,142.35,19.40098175]
[1764267408519,0.69,142.39,142.35,24.59299683]
[1764267408719,0.69,142.39,142.38,0.61842355]
[1764267409031,0.69,142.39,142.38,5.19201508]
[1764267409231,0.69,142.39,142.36,0.61842355]
[1764267409753,0.69,142.39,142.37,0.61842355]
[1764267409947,7.71297113,142.39,142.37,0.61842355]
[1764267410154,0.69,142.39,142.33,7.02557994]
[1764267410452,0.69,142.38,142.32,19.428864]
[1764267410629,0.69,142.38,142.35,0.61842355]
[1764267410943,0.61842355,142.4,142.37,0.61842355]
[1764267411153,0.28432314,142.39,142.37,0.61842355]
[1764267411348,0.14216157,142.39,142.37,0.61842355]
[1764267411650,0.28432314,142.39,142.37,0.61842355]
[1764267412031,3.40432314,142.39,142.37,0.61842355]
[1764267412226,10.42762972,142.39,142.37,0.61842355]
[1764267412644,3.40432314,142.39,142.35,2.4736942]
[1764267412849,3.40432314,142.39,142.38,0.61842355]
[1764267413226,11.04589782,142.39,142.35,0.61842355]
[1764267413427,0.69,142.38,142.35,0.61842355]
[1764267413941,7.71353569,142.38,142.35,0.61842355]
[1764267414143,0.61842355,142.36,142.3,0.61842355]
[1764267414329,3.73842355,142.35,142.31,0.61842355]
[1764267414638,0.28432314,142.34,142.32,0.61842355]
[1764267414838,0.69,142.34,142.33,0.61842355]
[1764267416548,0.69,142.37,142.33,8.3100272]
[1764267416751,0.28432314,142.38,142.36,1.28410154]
[1764267417044,7.02148603,142.42,142.37,2.56820308]
[1764267417245,3.12,142.4,142.39,1.28410154]
[1764267417645,3.12,142.4,142.38,1.28410154]
[1764267417646,3.81,142.4,142.38,1.28410154]
[1764267417847,0.69,142.39,142.38,1.28410154]
[1764267418548,3.12,142.4,142.38,9.59166143]
[1764267418749,3.81,142.4,142.39,1.28410154]
[1764267419044,0.69,142.39,142.38,7.02345835]
[1764267419250,0.69,142.39,142.38,8.30755989]
[1764267419637,3.81,142.41,142.38,9.59166143]
[1764267419838,3.81,142.41,142.4,1.28410154]
[1764267420037,3.12,142.41,142.4,1.28410154]
[1764267420752,3.81,142.41,142.39,1.28410154]
[1764267420953,0.69,142.4,142.39,1.28410154]
[1764267421252,0.69,142.45,142.4,0.68]
[1764267421435,0.69,142.44,142.41,5.13640616]
[1764267421748,3.12,142.47,142.43,2.56820308]
[1764267421947,3.12,142.47,142.44,1.28410154]
[1764267422159,16.308864,142.49,142.44,1.28410154]
[1764267422449,3.12,142.48,142.46,1.28410154]
[1764267422642,1.28410154,142.47,142.43,1.28410154]
[1764267422849,0.14216157,142.46,142.43,1.28410154]
[1764267423047,0.69,142.45,142.43,1.28410154]
[1764267423242,0.69,142.45,142.44,1.28410154]
[1764267423440,0.69,142.45,142.42,1.28410154]
[1764267423749,3.12,142.44,142.41,1.28410154]
[1764267423951,7.02099276,142.43,142.4,1.28410154]
[1764267424249,7.71099276,142.43,142.4,1.28410154]
[1764267424429,0.69,142.42,142.38,1.28410154]
[1764267424634,0.69,142.42,142.4,1.28410154]
[1764267424835,0.69,142.42,142.38,1.28410154]
[1764267425035,3.12,142.41,142.4,1.28410154]
[1764267425431,3.81,142.41,142.4,1.28410154]
[1764267425639,3.81,142.41,142.39,1.28410154]
[1764267425832,0.69,142.4,142.39,1.28410154]
[1764267426853,0.69,142.4,142.36,16.308864]
[1764267426854,0.69,142.4,142.34,0.68]
[1764267427148,0.69,142.4,142.39,1.28410154]
[1764267428746,0.69,142.4,142.36,16.308864]
[1764267429052,0.69,142.4,142.39,1.28410154]
[1764267429641,3.81,142.4,142.39,1.28410154]
[1764267429952,3.81,142.4,142.36,16.308864]
[1764267430135,3.81,142.4,142.38,1.28410154]
[1764267430136,3.12,142.39,142.38,1.28410154]
[1764267430545,3.82,142.39,142.38,2.38338223]
[1764267430746,3.82,142.39,142.35,7.02445213]
[1764267430948,3.12,142.39,142.38,2.38338223]
[1764267431436,3.81,142.39,142.38,2.38338223]
[1764267431851,2.66770537,142.42,142.38,2.38338223]
[1764267432050,0.69,142.39,142.38,2.38338223]
[1764267432751,0.69,142.39,142.33,8.80994492]
[1764267432959,3.07338223,142.39,142.35,2.38338223]
[1764267433147,3.07338223,142.39,142.35,18.69224623]
[1764267433335,3.12,142.4,142.33,2.38338223]
[1764267433336,2.38338223,142.37,142.33,2.38338223]
[1764267433538,3.12,142.36,142.34,2.38338223]
[1764267433740,10.14475334,142.36,142.34,2.38338223]
[1764267433936,10.14475334,142.36,142.28,3.04338223]
[1764267433937,0.69,142.35,142.28,3.04338223]
[1764267434137,0.69,142.35,142.31,2.38338223]
[1764267434138,0.97432314,142.35,142.31,2.38338223]
[1764267434430,3.35770537,142.35,142.31,2.38338223]
[1764267434629,0.69,142.34,142.31,2.38338223]
[1764267434832,3.07338223,142.34,142.28,3.04338223]
[1764267435052,3.07338223,142.34,142.26,26.3827766]
[1764267435053,0.69,142.34,142.29,2.38338223]
[1764267435241,3.07338223,142.33,142.29,1.88338223]
[1764267435439,3.12,142.34,142.32,2.38338223]
[1764267435635,3.12,142.34,142.33,2.38338223]
[1764267435830,3.81,142.34,142.32,2.38338223]
[1764267436035,10.83545984,142.34,142.29,23.99639394]
[1764267436231,10.83545984,142.34,142.3,2.38338223]
[1764267436232,3.07338223,142.33,142.3,2.38338223]
[1764267436458,0.69,142.33,142.3,2.38338223]
[1764267436757,0.69,142.32,142.31,2.38338223]
[1764267436956,3.12,142.32,142.31,2.38338223]
[1764267438146,7.71450947,142.36,142.31,10.07008507]
[1764267438342,3.81,142.36,142.34,2.38338223]
[1764267438549,0.69,142.36,142.35,2.38338223]
[1764267438757,3.81,142.36,142.35,2.38338223]
[1764267439052,10.83444506,142.36,142.34,2.38338223]
[1764267439280,10.83444506,142.36,142.3,17.56776823]
[1764267439281,0.69,142.35,142.3,7.0272191]
[1764267439557,0.69,142.35,142.34,2.38338223]
[1764267439756,3.12,142.36,142.34,2.38338223]
[1764267439962,3.12,142.36,142.35,2.38338223]
[1764267440134,3.81,142.36,142.35,2.38338223]
[1764267440341,3.81,142.36,142.3,16.968864]
[1764267440657,3.81,142.35,142.32,2.38338223]
[1764267441158,3.81,142.35,142.33,2.38338223]
[1764267441557,3.81,142.35,142.3,23.99608782]
[1764267441558,3.07338223,142.34,142.3,2.38338223]
[1764267441854,7.02592566,142.33,142.28,19.35224623]
[1764267442058,7.71592566,142.33,142.31,2.38338223]
[1764267442262,0.69,142.32,142.31,2.38338223]
[1764267442561,6.19338223,142.32,142.28,2.38338223]
[1764267442937,7.71592566,142.33,142.3,2.38338223]
[1764267443139,3.81,142.32,142.3,2.38338223]
[1764267443459,10.83561851,142.34,142.31,2.38338223]
[1764267443778,10.83561851,142.34,142.32,2.38338223]
[1764267444642,10.14561851,142.34,142.32,2.38338223]
[1764267444847,0.69,142.33,142.32,2.38338223]
[1764267445354,3.12,142.34,142.32,2.38338223]
[1764267445559,0.69,142.34,142.33,2.38338223]
[1764267445751,3.81,142.34,142.3,7.02738692]
[1764267446062,0.69,142.34,142.33,2.38338223]
[1764267446259,0.69,142.34,142.32,2.38338223]
[1764267446765,0.69,142.34,142.33,2.38338223]
[1764267447742,7.71543206,142.34,142.33,2.38338223]
[1764267448645,7.71543206,142.34,142.32,2.38338223]
[1764267448946,19.94389051,142.37,142.32,2.38338223]
[1764267448947,0.69,142.37,142.33,7.03325221]
[1764267449147,0.69,142.37,142.36,2.38338223]
[1764267449354,3.81,142.37,142.36,2.38338223]
[1764267449558,3.12,142.37,142.36,4.76676446]
[1764267449866,3.12,142.37,142.36,2.38338223]
[1764267450045,3.81,142.37,142.36,2.38338223]
[1764267450242,3.12,142.37,142.36,2.38338223]
[1764267450447,0.69,142.38,142.36,2.38338223]
[1764267450766,3.12,142.37,142.33,7.68562826]
[1764267450968,10.14397869,142.37,142.34,4.66800612]
[1764267451168,3.12,142.37,142.35,4.67826445]
[1764267451459,0.69,142.36,142.29,0.66]
[1764267451661,0.97432314,142.36,142.31,4.67966717]
[1764267451862,2.38338223,142.35,142.32,4.67966717]
[1764267452063,5.50338223,142.34,142.31,2.38338223]
[1764267452238,5.50338223,142.34,142.27,6.60042749]
[1764267452239,2.66770537,142.33,142.32,4.69622322]
[1764267452444,3.35770537,142.33,142.32,4.69622322]
[1764267452645,0.28432314,142.31,142.26,2.38338223]
[1764267452890,5.50338223,142.3,142.27,4.70134804]
[1764267453058,6.19338223,142.3,142.28,4.70134804]
[1764267453251,6.19338223,142.3,142.26,2.38338223]
[1764267453252,3.07338223,142.29,142.25,2.38338223]
[1764267453556,2.38338223,142.28,142.26,4.69817307]
[1764267453757,3.07338223,142.28,142.27,4.69817307]
[1764267454371,2.38338223,142.28,142.24,10.07345565]
[1764267454549,2.38338223,142.28,142.25,4.69647063]
[1764267454877,10.10158961,142.29,142.26,4.69647063]
[1764267455045,10.10158961,142.29,142.25,2.38338223]
[1764267455245,7.71820738,142.29,142.26,7.07941788]
[1764267455561,7.71820738,142.29,142.26,2.38338223]
[1764267457352,0.69,142.32,142.28,2.38338223]
[1764267457666,3.12,142.31,142.28,2.38338223]
[1764267457844,3.81,142.31,142.28,2.38338223]
[1764267458162,0.69,142.3,142.28,2.38338223]
[1764267459342,7.71749523,142.3,142.28,2.38338223]
[1764267459573,0.69,142.3,142.28,2.38338223]
[1764267459769,7.71741446,142.3,142.28,2.38338223]
[1764267460157,0.69,142.3,142.28,2.38338223]
[1764267460361,0.7,142.29,142.25,16.308864]
[1764267460688,10.14839471,142.28,142.26,2.38338223]
[1764267460844,10.14839471,142.28,142.25,18.69224623]
[1764267461046,0.7,142.27,142.24,2.38338223]
[1764267461352,0.7,142.27,142.25,2.38338223]
[1764267462644,10.11256117,142.27,142.23,2.38338223]
[1764267462848,0.7,142.26,142.22,2.38338223]
[1764267463044,2.38338223,142.25,142.21,2.38338223]
[1764267463274,3.12,142.24,142.19,7.03271879]
[1764267463558,3.82,142.24,142.21,2.38338223]
[1764267463963,0.7,142.23,142.21,2.38338223]
[1764267465260,0.7,142.23,142.2,23.3410633]
[1764267465261,7.73088034,142.23,142.2,16.308864]
[1764267465461,7.73088034,142.23,142.2,2.38338223]
[1764267465695,0.7,142.22,142.2,2.38338223]
[1764267466299,10.15057559,142.24,142.21,2.38338223]
[1764267466595,10.85057559,142.24,142.21,2.38338223]
[1764267466794,0.7,142.23,142.21,2.38338223]
[1764267468591,0.7,142.23,142.21,9.41511823]
[1764267468795,3.12,142.24,142.22,2.38338223]
[1764267468982,3.82,142.24,142.22,2.38338223]
[1764267470068,19.95752753,142.26,142.22,2.38338223]
[1764267470069,7.02904176,142.27,142.23,2.38338223]
[1764267470275,3.82,142.26,142.24,2.38338223]
[1764267471273,3.12,142.26,142.22,7.03125141]
[1764267471472,3.82,142.25,142.23,2.38338223]
[1764267472304,0.7,142.27,142.24,2.38338223]
[1764267472479,17.85469564,142.29,142.26,2.38338223]
[1764267472480,0.7,142.29,142.26,2.38338223]
[1764267472684,0.7,142.29,142.27,2.38338223]
[1764267472685,3.12,142.28,142.27,2.38338223]
[1764267473076,0.7,142.3,142.27,2.38338223]
[1764267473401,0.7,142.31,142.28,2.38338223]
[1764267474204,7.72727497,142.31,142.28,2.38338223]
[1764267474608,0.7,142.3,142.28,2.38338223]
[1764267475988,5.50338223,142.32,142.28,2.38338223]
[1764267475989,0.7,142.32,142.29,2.38338223]
[1764267476203,0.7,142.32,142.26,0.7]
[1764267476204,0.7,142.32,142.26,24.60225811]
[1764267476389,0.7,142.31,142.3,2.38338223]
[1764267478208,3.12,142.32,142.3,2.38338223]
[1764267478378,0.7,142.35,142.31,2.38338223]
[1764267478582,3.12,142.34,142.33,2.38338223]
[1764267479923,3.82,142.34,142.33,2.38338223]
[1764267480316,3.82,142.34,142.31,7.02650074]
[1764267480615,3.82,142.34,142.33,2.38338223]
[1764267481618,7.02432211,142.37,142.33,2.38338223]
[1764267481923,2.38338223,142.36,142.32,2.38338223]
[1764267482221,0.7,142.35,142.32,2.38338223]
[1764267482421,0.7,142.35,142.33,2.38338223]
[1764267482602,3.08338223,142.35,142.29,23.33676476]
[1764267482807,3.08338223,142.35,142.31,2.38338223]
[1764267483026,0.7,142.34,142.29,24.03676476]
[1764267483322,0.7,142.34,142.28,23.07400389]
[1764267483323,3.12,142.33,142.31,2.38338223]
[1764267483694,0.7,142.32,142.3,2.38338223]
[1764267483895,0.7,142.34,142.31,2.38338223]
[1764267484101,3.12,142.33,142.32,2.38338223]
[1764267484300,3.82,142.33,142.29,0.7]
[1764267484500,3.82,142.33,142.32,2.38338223]
[1764267485420,10.84592566,142.33,142.32,2.38338223]
[1764267485804,10.84592566,142.33,142.3,2.38338223]
[1764267486125,2.38338223,142.31,142.26,2.38338223]
[1764267486310,3.36770537,142.32,142.26,2.38338223]
[1764267486311,2.38338223,142.3,142.26,2.38338223]
[1764267486617,3.36770537,142.32,142.24,3.08338223]
[1764267486618,5.50338223,142.29,142.24,3.08338223]
[1764267486925,2.38338223,142.28,142.25,16.308864]
[1764267487103,2.38338223,142.28,142.21,17.57918188]
[1764267487104,2.38338223,142.26,142.21,0.7]
[1764267487295,5.50338223,142.25,142.21,0.7]
[1764267487500,12.53345503,142.25,142.21,0.7]
[1764267487698,2.38338223,142.24,142.19,24.04153047]
[1764267487901,12.53345503,142.25,142.2,2.38338223]
[1764267488199,0.7,142.25,142.22,2.38338223]
[1764267488400,3.82,142.25,142.22,2.38338223]
[1764267488625,3.82,142.25,142.21,3.08338223]
[1764267489031,3.82,142.25,142.2,2.38338223]
[1764267489032,12.53351186,142.25,142.2,2.38338223]
[1764267489237,3.08338223,142.24,142.19,10.1160487]
[1764267489535,10.11383113,142.24,142.2,16.308864]
[1764267489700,2.38338223,142.21,142.18,0.1]
[1764267490024,5.50338223,142.21,142.18,0.1]
[1764267490212,5.50338223,142.21,142.18,0.78]
[1764267490601,4.40715138,142.21,142.18,0.78]
[1764267492425,34.167004,142.26,142.18,7.81325223]
[1764267492606,1.28715138,142.24,142.19,17.59601538]
[1764267492806,3.12,142.25,142.19,17.59601538]
[1764267492807,4.40715138,142.25,142.2,1.28715138]
[1764267493007,1.28715138,142.24,142.2,0.68]
[1764267493206,1.28715138,142.23,142.19,16.308864]
[1764267493412,1.93715138,142.23,142.19,16.308864]
[1764267493610,1.93715138,142.23,142.19,16.988864]
[1764267493810,1.28715138,142.22,142.19,16.988864]
[1764267494403,7.68097995,142.23,142.19,16.988864]
[1764267494606,1.28715138,142.22,142.19,16.988864]
[1764267495133,1.28715138,142.22,142.19,24.02163568]
[1764267495302,1.28715138,142.22,142.19,16.308864]
[1764267495702,1.95715138,142.22,142.18,0.1]
[1764267495924,1.28715138,142.2,142.18,0.1]
[1764267496211,1.28715138,142.19,142.18,0.1]
[1764267496421,8.98999475,142.19,142.18,0.1]
[1764267497220,0.67,142.19,142.18,0.1]
[1764267497435,11.4395389,142.2,142.18,0.1]
[1764267497739,3.12,142.19,142.18,0.1]
[1764267498512,11.43999475,142.19,142.18,0.1]
[1764267498711,12.10999475,142.19,142.18,0.1]
[1764267499127,5.07715138,142.19,142.18,0.1]
[1764267499719,12.10999475,142.19,142.18,0.1]
[1764267501942,10.82284337,142.19,142.18,0.1]
[1764267502513,12.10999475,142.19,142.18,0.1]
[1764267504420,10.15284337,142.19,142.18,0.1]
[1764267504835,12.10999475,142.19,142.18,0.1]
[1764267505518,10.82284337,142.19,142.18,0.1]
[1764267506450,1.28715138,142.22,142.18,2.08715138]
[1764267506633,3.12,142.21,142.18,2.08715138]
[1764267506819,3.12,142.21,142.19,1.28715138]
[1764267507222,7.70053881,142.24,142.18,7.13311201]
[1764267507522,7.03008279,142.25,142.21,1.28715138]
[1764267507728,3.12,142.24,142.2,0.7]
[1764267507954,3.79,142.24,142.21,1.28715138]
[1764267508249,3.79,142.24,142.2,7.73207324]
[1764267508425,3.79,142.24,142.21,1.28715138]
[1764267508628,3.79,142.24,142.21,1.98715138]
[1764267508629,3.12,142.24,142.21,1.98715138]
[1764267510334,3.12,142.24,142.21,9.01895259]
[1764267510535,7.69933047,142.27,142.23,1.28715138]
[1764267510730,0.67,142.26,142.23,1.28715138]
[1764267510932,3.12,142.26,142.25,1.28715138]
[1764267512553,3.12,142.26,142.24,1.28715138]
[1764267514069,3.12,142.27,142.25,1.98715138]
[1764267514259,3.12,142.28,142.26,1.28715138]
[1764267515062,3.12,142.28,142.25,7.72979823]
[1764267515260,3.12,142.28,142.25,1.28715138]
[1764267515461,3.79,142.28,142.25,1.28715138]
[1764267515962,3.79,142.28,142.26,1.28715138]
[1764267518269,3.12,142.28,142.26,1.28715138]
[1764267518655,8.98506203,142.29,142.26,1.28715138]
[1764267518861,3.12,142.28,142.26,1.28715138]
[1764267519056,3.12,142.28,142.26,8.31648295]
[1764267519265,0.67,142.29,142.27,1.28715138]
[1764267519266,3.12,142.29,142.27,1.28715138]
[1764267519467,10.14743582,142.3,142.27,1.98715138]